bitfinex-derivatives/quotes_SOLF0:USTF0_20250415
["timestamp","ask_amount","ask_price","bid_price","bid_amount"]
[1744705333997,4.67618741,132.07,132.05,0.05762685]
[1744705334906,567.98,132.17,132.05,0.05762685]
[1744705335102,34.2752,132.16,132.1,0.05049525]
[1744705335290,4.67618741,132.11,132.1,0.05049525]
[1744705335494,32.69618741,132.11,132.03,4.67618741]
[1744705335796,2.0941,132.1,132.03,4.67618741]
[1744705336093,4.67618741,132.08,132.03,4.67618741]
[1744705336300,4.67618741,132.08,132.01,28.02]
[1744705336599,0.04901397,132.06,132.03,0.04975675]
[1744705337299,0.04901397,132.06,132.04,32.69618741]
[1744705337597,4.67618741,132.11,132.04,29.9783]
[1744705337797,4.67618741,132.11,132.05,4.67618741]
[1744705338590,4.67618741,132.11,132.07,0.05771956]
[1744705338794,4.67618741,132.09,132.07,0.05771956]
[1744705339499,4.67618741,132.09,132.01,28.02]
[1744705339695,4.67618741,132.05,132.01,28.02]
[1744705340097,4.67618741,132.09,132.02,4.67618741]
[1744705340594,0.05342773,132.07,132.04,0.05456332]
[1744705340800,0.05342773,132.07,132.04,32.75075073]
[1744705342608,0.05342773,132.07,132.05,4.14]
[1744705343804,4.67618741,132.1,132.06,4.67618741]
[1744705344299,4.67618741,132.12,132.07,28.02]
[1744705344803,4.67618741,132.12,132.08,0.05563297]
[1744705345704,4.1887,132.15,132.08,0.05563297]
[1744705346003,4.67618741,132.11,132.08,0.05563297]
[1744705346999,4.67618741,132.12,132.08,0.05563297]
[1744705349303,4.1887,132.15,132.08,0.05563297]
[1744705349601,4.67618741,132.12,132.08,0.05563297]
[1744705352906,4.67618741,132.13,132.08,0.05563297]
[1744705356508,4.67618741,132.14,132.08,4.73182038]
[1744705356708,4.67618741,132.14,132.1,0.05068226]
[1744705358211,4.67618741,132.12,132.1,0.05068226]
[1744705363415,32.2424,132.16,132.1,0.05068226]
[1744705363614,4.67618741,132.12,132.1,0.05068226]
[1744705364415,4.67618741,132.14,132.1,0.05068226]
[1744705365913,32.2424,132.16,132.1,0.05068226]
[1744705366235,4.67618741,132.15,132.1,0.05068226]
[1744705366417,4.67618741,132.15,132.1,28.05068226]
[1744705368916,4.67618741,132.13,132.1,28.05068226]
[1744705369321,4.0591,132.16,132.1,0.05068226]
[1744705369617,4.67618741,132.13,132.1,0.05068226]
[1744705371220,545.24,132.17,132.1,0.05068226]
[1744705371421,4.67618741,132.13,132.1,0.05068226]
[1744705377735,28.0,132.2,132.11,4.67618741]
[1744705378026,4.67618741,132.12,132.07,28.0]
[1744705378223,4.67618741,132.12,132.08,0.05273424]
[1744705379634,4.67618741,132.1,132.08,0.05273424]
[1744705382532,567.62,132.25,132.08,0.05273424]
[1744705382735,4.67618741,132.11,132.07,28.0]
[1744705383136,4.67618741,132.11,132.08,0.05195582]
[1744705388845,28.0,132.15,132.08,0.05195582]
[1744705389039,4.67618741,132.1,132.08,0.05195582]
[1744705391942,28.0,132.15,132.08,0.05195582]
[1744705392242,4.67618741,132.1,132.08,0.05195582]
[1744705398248,4.67618741,132.03,132.0,28.0]
[1744705398451,4.67618741,132.01,131.98,36.90097459]
[1744705399292,4.73073794,132.01,131.98,36.95038278]
[1744705399853,4.73073794,132.01,131.98,28.04940819]
[1744705402250,0.05455053,132.01,131.98,0.04940819]
[1744705402454,4.67618741,131.99,131.94,8.90097459]
[1744705402654,4.67618741,131.97,131.94,8.90097459]
[1744705403054,4.67618741,131.97,131.91,139.48788251]
[1744705403252,545.06,132.04,131.91,32.67618741]
[1744705403557,4.67618741,131.98,131.92,4.67618741]
[1744705403756,4.67618741,131.98,131.96,0.05356645]
[1744705404054,4.73196455,131.98,131.96,0.05356645]
[1744705412155,0.05577714,131.98,131.96,0.05356645]
[1744705412355,4.67618741,131.97,131.96,0.05356645]
[1744705412560,4.67618741,131.97,131.91,28.0]
[1744705412765,4.67618741,131.94,131.91,28.0]
[1744705413856,4.67618741,131.92,131.91,0.05509567]
[1744705416565,4.73429219,131.94,131.91,0.05509567]
[1744705418066,4.67618741,131.92,131.91,0.05509567]
[1744705420657,1.9877,131.93,131.86,2.0813]
[1744705420658,4.67618741,131.9,131.86,2.0813]
[1744705421669,0.05326559,131.89,131.87,0.05831043]
[1744705425572,4.67618741,131.88,131.87,0.05831043]
[1744705430475,0.05326559,131.89,131.87,0.05831043]
[1744705430674,4.67618741,131.88,131.87,0.05831043]
[1744705433576,0.05326559,131.89,131.87,0.05831043]
[1744705434978,4.67618741,131.93,131.87,4.73449784]
[1744705435177,4.67618741,131.91,131.87,0.05831043]
[1744705435981,0.05061675,131.9,131.87,0.05831043]
[1744705439987,4.67618741,131.89,131.87,0.05831043]
[1744705441781,4.67618741,131.89,131.82,573.1]
[1744705441988,4.67618741,131.86,131.82,573.1]
[1744705442287,4.67618741,131.86,131.82,28.04]
[1744705442987,0.0581773,131.85,131.83,0.04975873]
[1744705447886,4.67618741,131.84,131.83,0.04975873]
[1744705448298,4.67618741,131.84,131.79,28.02]
[1744705448490,4.67618741,131.84,131.77,2.0103]
[1744705448491,4.67618741,131.81,131.77,2.0103]
[1744705448692,4.67618741,131.81,131.76,30.0684]
[1744705449289,4.67618741,131.81,131.77,0.04833132]
[1744705449491,0.05155464,131.8,131.77,0.04833132]
[1744705453196,0.05155464,131.8,131.78,4.67618741]
[1744705456294,4.67618741,131.84,131.78,4.67618741]
[1744705456492,4.67618741,131.84,131.79,28.04]
[1744705456996,4.67618741,131.84,131.8,4.67618741]
[1744705457192,4.67618741,131.84,131.81,0.05514453]
[1744705457397,0.05072358,131.83,131.81,0.05514453]
[1744705462002,0.05072358,131.83,131.81,4.73133194]
[1744705462295,4.67618741,131.89,131.83,4.67618741]
[1744705463199,0.05050956,131.87,131.85,0.05283427]
[1744705463998,0.05050956,131.87,131.85,32.76902168]
[1744705464201,4.67618741,131.91,131.85,32.76902168]
[1744705465300,0.05123121,131.89,131.85,28.09283427]
[1744705465494,0.05123121,131.89,131.86,0.05549113]
[1744705473502,22.72,132.02,131.86,0.05549113]
[1744705473703,7.32382021,131.94,131.85,35.36382021]
[1744705473902,4.3328,131.98,131.85,28.04]
[1744705473903,7.32382021,131.92,131.85,28.04]
[1744705474605,0.05396424,131.9,131.87,0.05235609]
[1744705487109,4.74116555,131.9,131.87,0.05235609]
[1744705493323,4.68720131,131.88,131.87,0.05235609]
[1744705505637,28.07396424,131.9,131.87,0.05235609]
[1744705505828,4.68720131,131.89,131.87,0.05235609]
[1744705509429,4.68720131,131.89,131.81,28.02]
[1744705509629,4.68720131,131.85,131.81,28.02]
[1744705510428,4.68720131,131.85,131.82,0.05604967]
[1744705510733,0.04978487,131.84,131.82,0.05604967]
[1744705511633,4.68720131,131.89,131.83,4.68720131]
[1744705512132,4.68720131,131.89,131.84,28.02]
[1744705512637,0.05460874,131.88,131.85,0.05131979]
[1744705516552,4.68720131,131.87,131.85,0.05131979]
[1744705518849,0.05460874,131.88,131.85,0.05131979]
[1744705519053,4.74181005,131.88,131.85,0.05131979]
[1744705519954,0.05460874,131.88,131.85,0.05131979]
[1744705523652,0.05460874,131.88,131.85,4.7385211]
[1744705523858,3.9918,131.92,131.87,4.68720131]
[1744705524065,3.9918,131.92,131.89,4.68720131]
[1744705524357,4.68720131,131.93,131.89,28.02]
[1744705524958,0.02129707,131.92,131.9,0.05768243]
[1744705527053,4.68720131,131.91,131.9,0.05768243]
[1744705529364,0.02129707,131.92,131.9,0.05768243]
[1744705529558,4.68720131,131.91,131.9,0.05768243]
[1744705531062,4.68720131,131.91,131.86,28.02]
[1744705531364,4.68720131,131.89,131.86,28.02]
[1744705531662,4.68720131,131.87,131.83,28.02]
[1744705532105,28.02,131.91,131.83,28.02]
[1744705532262,28.02,131.91,131.84,4.73862761]
[1744705532263,0.05252077,131.86,131.84,4.73862761]
[1744705532561,0.04832227,131.86,131.84,4.73862761]
[1744705534261,0.04832227,131.86,131.84,0.0514263]
[1744705534657,4.73552358,131.86,131.84,0.0514263]
[1744705536960,4.68720131,131.85,131.84,0.0514263]
[1744705541066,0.04832227,131.86,131.84,0.0514263]
[1744705541266,4.68720131,131.85,131.84,0.0514263]
[1744705544269,4.68720131,131.85,131.81,2.0409]
[1744705544471,4.68720131,131.82,131.81,2.0409]
[1744705544766,4.68720131,131.82,131.77,28.0]
[1744705545359,0.05521581,131.81,131.78,0.0553816]
[1744705551065,4.68720131,131.8,131.78,0.0553816]
[1744705551669,4.68720131,131.8,131.73,545.86]
[1744705551869,4.68720131,131.76,131.71,28.02]
[1744705552171,4.68720131,131.76,131.72,28.02]
[1744705552773,0.055015,131.75,131.73,0.05183823]
[1744705557476,28.075015,131.75,131.59,35.60389836]
[1744705557670,4.68720131,131.76,131.72,4.68720131]
[1744705557871,4.68720131,131.78,131.72,4.68720131]
[1744705558683,0.05169011,131.76,131.74,0.05023123]
[1744705562675,4.73889142,131.76,131.74,0.05023123]
[1744705562980,32.75889142,131.76,131.74,0.05023123]
[1744705563170,32.75889142,131.76,131.69,28.02]
[1744705563377,4.68720131,131.73,131.69,28.02]
[1744705563882,4.68720131,131.71,131.67,1.9529]
[1744705564279,4.68720131,131.69,131.68,0.05510003]
[1744705564480,4.68720131,131.69,131.67,1.9529]
[1744705564682,4.68720131,131.69,131.67,2.00740815]
[1744705565184,0.04876084,131.7,131.67,0.05450815]
[1744705565378,4.68720131,131.69,131.67,0.05450815]
[1744705568581,32.70720131,131.69,131.67,0.05450815]
[1744705579493,0.04876084,131.7,131.67,0.05450815]
[1744705580189,4.73596215,131.7,131.67,0.05450815]
[1744705581291,0.04876084,131.7,131.67,0.05450815]
[1744705582091,0.04876084,131.7,131.67,4.74170946]
[1744705583396,4.68720131,131.74,131.67,4.74170946]
[1744705583692,4.68720131,131.74,131.69,4.68720131]
[1744705583886,4.68720131,131.74,131.69,32.72720131]
[1744705584396,0.04870337,131.73,131.7,0.05537576]
[1744705588297,28.04,131.78,131.71,4.68720131]
[1744705588590,4.68720131,131.77,131.71,4.68720131]
[1744705588795,4.68720131,131.75,131.69,32.72720131]
[1744705588991,546.6,131.83,131.69,32.72720131]
[1744705589198,4.68720131,131.79,131.73,4.68720131]
[1744705589498,0.04967265,131.77,131.75,0.05242476]
[1744705590403,0.04967265,131.77,131.75,4.73962607]
[1744705590804,4.68720131,131.82,131.76,28.04]
[1744705591302,4.68720131,131.8,131.76,28.04]
[1744705591838,0.05194975,131.79,131.77,0.05746641]
[1744705592806,4.68720131,131.78,131.77,0.05746641]
[1744705605313,0.05194975,131.79,131.77,0.05746641]
[1744705607021,4.68720131,131.82,131.77,4.74466772]
[1744705607316,4.68720131,131.82,131.77,4.68720131]
[1744705608311,0.04986644,131.81,131.78,0.04953824]
[1744705611023,4.68720131,131.8,131.78,0.04953824]
[1744705618322,0.04986644,131.81,131.78,0.04953824]
[1744705621722,32.68720131,131.8,131.73,28.0]
[1744705621937,4.68720131,131.77,131.73,28.0]
[1744705622624,4.68720131,131.75,131.73,28.0]
[1744705622821,4.74483811,131.75,131.73,28.04826613]
[1744705623325,4.74483811,131.75,131.73,0.04826613]
[1744705625121,7.34267605,131.74,131.73,0.04826613]
[1744705626932,7.34267605,131.72,131.71,2.0927]
[1744705627236,7.34267605,131.72,131.67,28.0]
[1744705627930,0.04833527,131.71,131.68,0.04942572]
[1744705640540,0.04833527,131.71,131.68,7.39210177]
[1744705640839,7.34267605,131.76,131.68,7.39210177]
[1744705640840,7.34267605,131.76,131.69,62.0]
[1744705641143,7.34267605,131.76,131.7,28.02]
[1744705641537,7.34267605,131.78,131.7,28.02]
[1744705641738,0.05084251,131.75,131.73,0.0545696]
[1744705644839,0.05084251,131.75,131.73,28.0745696]
[1744705648336,4.74695658,131.75,131.73,28.0745696]
[1744705649041,0.05084251,131.75,131.73,28.0745696]
[1744705654245,4.74695658,131.75,131.73,28.0745696]
[1744705655074,0.05084251,131.75,131.73,28.0745696]
[1744705662659,4.74695658,131.75,131.73,0.0545696]
[1744705664353,0.05084251,131.75,131.73,0.0545696]
[1744705664857,0.05084251,131.75,131.73,28.0545696]
[1744705672162,0.05084251,131.75,131.73,0.0545696]
[1744705672361,0.05084251,131.75,131.73,28.0545696]
[1744705687166,0.0499659,131.81,131.78,0.05712189]
[1744705688068,4.69611407,131.8,131.78,0.05712189]
[1744705688266,4.031,131.79,131.78,0.05712189]
[1744705700782,4.031,131.79,131.7,6.0603]
[1744705700983,4.69611407,131.75,131.71,27.98]
[1744705701978,0.05724688,131.74,131.72,0.05181547]
[1744705703181,4.75336095,131.74,131.72,0.05181547]
[1744705706488,4.69611407,131.73,131.72,0.05181547]
[1744705712393,0.05724688,131.74,131.72,0.05181547]
[1744705712791,4.75336095,131.74,131.72,0.05181547]
[1744705722000,4.75336095,131.74,131.68,32.69611407]
[1744705722302,4.69611407,131.7,131.68,28.0]
[1744705722491,4.69611407,131.7,131.65,28.0]
[1744705722689,4.69611407,131.71,131.65,32.69611407]
[1744705723198,0.0486701,131.69,131.67,0.05569523]
[1744705727602,0.0486701,131.69,131.67,4.7518093]
[1744705728306,0.0486701,131.69,131.68,4.69611407]
[1744705728608,0.0486701,131.69,131.68,32.69611407]
[1744705729208,4.69611407,131.75,131.68,32.69611407]
[1744705729409,4.69611407,131.75,131.7,4.69611407]
[1744705729710,4.69611407,131.74,131.69,4.69611407]
[1744705730310,4.74544072,131.73,131.7,0.05598067]
[1744705731013,0.04932665,131.73,131.7,4.75209474]
[1744705735511,4.74544072,131.73,131.7,0.05598067]
[1744705739510,0.04932665,131.73,131.7,4.75209474]
[1744705741308,0.04932665,131.73,131.71,32.69611407]
[1744705742717,0.04932665,131.73,131.71,28.0]
[1744705746918,546.52,131.83,131.72,4.69611407]
[1744705747114,8.79031407,131.8,131.74,4.69611407]
[1744705747420,8.79031407,131.8,131.74,32.69611407]
[1744705747614,8.79031407,131.8,131.75,4.69611407]
[1744705748122,0.05763723,131.79,131.76,0.05670474]
[1744705751528,4.7537513,131.79,131.76,0.05670474]
[1744705751730,0.05763723,131.79,131.76,0.05670474]
[1744705752734,0.05763723,131.79,131.76,4.75281881]
[1744705752928,0.05763723,131.79,131.78,4.69611407]
[1744705753128,0.05763723,131.79,131.77,4.69611407]
[1744705753728,0.05763723,131.79,131.76,4.75281881]
[1744705755030,4.7537513,131.79,131.76,0.05670474]
[1744705755629,0.05763723,131.79,131.76,0.05670474]
[1744705758331,0.05763723,131.79,131.76,4.75281881]
[1744705758531,0.05763723,131.79,131.77,4.69611407]
[1744705761430,0.05763723,131.79,131.76,4.75281881]
[1744705762133,4.7537513,131.79,131.76,0.05670474]
[1744705763641,4.69611407,131.77,131.76,0.05670474]
[1744705764740,4.69611407,131.77,131.72,27.96]
[1744705764935,4.69611407,131.75,131.72,27.96]
[1744705765836,4.7470638,131.75,131.72,28.00831783]
[1744705766542,4.69611407,131.73,131.72,0.04831783]
[1744705768244,4.69611407,131.74,131.72,0.04831783]
[1744705768640,4.69611407,131.73,131.72,0.04831783]
[1744705778050,4.69611407,131.73,131.66,32.1531]
[1744705778245,4.69611407,131.71,131.67,4.69611407]
[1744705778547,4.69611407,131.73,131.68,4.69611407]
[1744705779248,0.057108,131.72,131.69,0.05427538]
[1744705781547,0.057108,131.72,131.7,4.69611407]
[1744705781748,0.057108,131.72,131.69,32.71038945]
[1744705781949,0.057108,131.72,131.69,28.01427538]
[1744705792669,0.057108,131.72,131.69,0.05427538]
[1744705792670,4.69611407,131.71,131.69,0.05427538]
[1744705797868,4.69611407,131.71,131.69,0.05427538]
[1744705800470,0.057108,131.72,131.69,0.05427538]
[1744705801365,0.057108,131.72,131.69,4.75038945]
[1744705801561,0.057108,131.72,131.69,0.05427538]
[1744705803169,4.69611407,131.71,131.69,0.05427538]
[1744705803560,4.75322207,131.72,131.69,0.05427538]
[1744705810879,546.6,131.71,131.6,10.22238485]
[1744705811179,546.6,131.84,131.61,546.6]
[1744705811381,4.69611407,131.73,131.64,4.69611407]
[1744705811577,4.69611407,131.69,131.62,29.34]
[1744705812077,0.0516897,131.67,131.64,0.04909385]
[1744705812277,0.0516897,131.67,131.64,0.05447364]
[1744705813983,0.0516897,131.67,131.65,4.69611407]
[1744705814275,1.995,131.72,131.66,29.34]
[1744705815285,0.05481518,131.7,131.68,0.05488809]
[1744705815882,0.05481518,131.7,131.69,4.69611407]
[1744705816279,4.69611407,131.76,131.69,4.69611407]
[1744705816482,4.69611407,131.76,131.7,29.34]
[1744705817288,0.05350478,131.74,131.72,0.05525906]
[1744705817882,4.74961885,131.74,131.72,0.05525906]
[1744705823796,0.05350478,131.74,131.72,0.05525906]
[1744705824493,4.69611407,131.78,131.72,0.05525906]
[1744705824797,4.69611407,131.78,131.71,34.01611407]
[1744705824995,4.69611407,131.76,131.71,34.01611407]
[1744705825594,0.05302875,131.75,131.72,0.0563644]
[1744705828395,0.05302875,131.75,131.73,4.69611407]
[1744705828599,4.3209,131.8,131.73,4.69611407]
[1744705828795,4.69611407,131.78,131.72,4.0779]
[1744705829001,4.69611407,131.76,131.72,4.0779]
[1744705829198,4.69611407,131.78,131.73,4.69611407]
[1744705829400,9.01701407,131.8,131.73,4.69611407]
[1744705829700,0.04459699,131.78,131.75,0.05792397]
[1744705829896,0.04459699,131.78,131.76,29.32]
[1744705831000,4.74071106,131.78,131.76,29.32]
[1744705831896,0.04459699,131.78,131.76,29.32]
[1744705832102,4.143,131.89,131.77,4.69611407]
[1744705832305,4.69611407,131.84,131.77,4.69611407]
[1744705832502,4.69611407,131.82,131.77,4.69611407]
[1744705833104,4.69611407,131.82,131.78,0.0547087]
[1744705833905,4.69611407,131.83,131.78,0.0547087]
[1744705834099,4.69611407,131.83,131.79,0.05033662]
[1744705834300,4.69611407,131.83,131.8,29.32]
[1744705835703,4.69611407,131.81,131.8,29.32]
[1744705837602,4.69611407,131.83,131.8,29.32]
[1744705837899,4.69611407,131.83,131.8,29.37056594]
[1744705843108,4.143,131.89,131.8,29.37056594]
[1744705843302,4.69611407,131.85,131.8,29.32]
[1744705843502,4.69611407,131.85,131.83,0.04856246]
[1744705846809,4.69611407,131.84,131.83,0.04856246]
[1744705854812,4.143,131.89,131.83,0.04856246]
[1744705855012,4.143,131.89,131.84,29.66]
[1744705855213,4.69611407,131.87,131.84,29.66]
[1744705857518,4.69611407,131.85,131.84,29.66]
[1744705857718,4.69611407,131.85,131.83,0.04856246]
[1744705859218,33.803,131.89,131.83,0.04856246]
[1744705859414,4.69611407,131.84,131.83,0.04856246]
[1744705860319,33.803,131.89,131.83,0.04856246]
[1744705860521,4.69611407,131.87,131.84,29.66]
[1744705863524,4.69611407,131.85,131.84,29.66]
[1744705864126,4.143,131.89,131.84,29.66]
[1744705864319,4.69611407,131.87,131.84,29.66]
[1744705876228,4.69611407,131.88,131.84,29.66]
[1744705878932,4.69611407,131.86,131.84,29.66]
[1744705881432,4.69611407,131.87,131.84,29.66]
[1744705881932,6.67881407,131.89,131.84,29.66]
[1744705882534,6.67881407,131.89,131.83,4.74467653]
[1744705882734,6.67881407,131.89,131.84,29.1]
[1744705883733,6.67881407,131.89,131.83,0.04856246]
[1744705883937,6.67881407,131.89,131.84,29.1]
[1744705884535,6.67881407,131.89,131.83,0.04856246]
[1744705884734,6.67881407,131.89,131.84,29.1]
[1744705886537,4.69611407,131.91,131.84,33.79611407]
[1744705886738,4.69611407,131.91,131.86,0.0553472]
[1744705886939,4.69611407,131.91,131.87,29.1]
[1744705890541,4.69611407,131.89,131.87,29.1]
[1744705894846,4.69611407,131.91,131.87,29.1]
[1744705900650,4.69611407,131.89,131.86,0.0553472]
[1744705900849,4.69611407,131.89,131.86,29.1553472]
[1744705905745,29.66,131.93,131.86,0.0553472]
[1744705905948,4.69611407,131.91,131.86,0.0553472]
[1744705906152,4.69611407,131.89,131.86,0.0553472]
[1744705908559,4.69611407,131.88,131.86,0.0553472]
[1744705910357,4.69611407,131.88,131.86,28.5753472]
[1744705912064,4.69611407,131.88,131.86,0.0553472]
[1744705944790,4.69611407,131.88,131.78,4.69611407]
[1744705944991,4.69611407,131.83,131.81,28.16]
[1744705945989,4.75146127,131.83,131.81,28.21218536]
[1744705946590,4.69611407,131.82,131.81,0.05218536]
[1744705946993,4.69611407,131.82,131.77,28.16]
[1744705947291,4.69611407,131.78,131.77,28.16]
[1744705947887,4.69611407,131.78,131.75,2.1126]
[1744705948097,4.75283517,131.78,131.75,2.16072704]
[1744705951681,4.75283517,131.78,131.75,0.04812704]
[1744705953693,4.69611407,131.76,131.75,0.04812704]
[1744705961000,4.69611407,131.76,131.7,28.18]
[1744705961301,4.69611407,131.73,131.7,28.18]
[1744705961901,4.74909331,131.73,131.7,28.23212425]
[1744705965102,4.69611407,131.71,131.7,28.23212425]
[1744705965508,4.69611407,131.71,131.7,0.05212425]
[1744705970415,4.69611407,131.71,131.64,28.04]
[1744705970613,4.69611407,131.68,131.64,28.04]
[1744705970813,4.69611407,131.66,131.64,28.04]
[1744705971018,4.69611407,131.66,131.62,4.1173]
[1744705971209,4.69611407,131.66,131.62,1.9923]
[1744705971609,0.05840617,131.65,131.63,0.05517062]
[1744705971809,4.69611407,131.64,131.63,0.05517062]
[1744705972105,4.69611407,131.64,131.59,4.69611407]
[1744705972309,4.69611407,131.64,131.58,32.73611407]
[1744705973215,0.04968221,131.62,131.6,0.04906425]
[1744705974015,4.74579628,131.62,131.6,0.04906425]
[1744705974211,4.74579628,131.62,131.47,430.50574861]
[1744705974516,4.69611407,131.62,131.56,4.69611407]
[1744705974716,4.69611407,131.62,131.55,28.04]
[1744705974920,4.69611407,131.62,131.57,4.69611407]
[1744705975414,0.05490846,131.61,131.58,0.05113029]
[1744705977318,0.05490846,131.61,131.59,4.69611407]
[1744705978822,0.05490846,131.61,131.58,32.78724436]
[1744705981219,0.05490846,131.61,131.58,4.74724436]
[1744705981425,4.69611407,131.59,131.58,0.05113029]
[1744705981627,4.75102253,131.61,131.58,0.05113029]
[1744705981923,0.05490846,131.61,131.59,4.69611407]
[1744705982123,0.05490846,131.61,131.59,6.72031407]
[1744705982324,0.05490846,131.61,131.59,2.0242]
[1744705982925,0.05490846,131.61,131.58,0.05113029]
[1744705983921,0.05490846,131.61,131.58,4.74724436]
[1744705987129,4.75102253,131.61,131.58,0.05113029]
[1744705989532,4.69611407,131.59,131.58,0.05113029]
[1744705995832,0.05490846,131.61,131.58,0.05113029]
[1744705996036,4.75102253,131.61,131.58,0.05113029]
[1744705997140,0.05490846,131.61,131.58,4.74724436]
[1744705998836,4.69611407,131.64,131.59,28.06]
[1744705999338,4.69611407,131.62,131.59,28.06]
[1744705999938,4.75386948,131.62,131.59,28.10855388]
[1744706000640,4.69611407,131.6,131.55,2.0243]
[1744706000839,4.69611407,131.57,131.55,2.0243]
[1744706001231,4.69611407,131.57,131.54,28.06]
[1744706001636,4.7484556,131.57,131.54,28.06]
[1744706001841,4.7484556,131.57,131.54,28.11804576]
[1744706003241,7.3613012,131.56,131.54,0.05804576]
[1744706006744,28.06,131.55,131.54,0.05804576]
[1744706008243,0.05234153,131.57,131.54,0.05804576]
[1744706012741,0.05234153,131.57,131.54,28.11804576]
[1744706014349,28.06,131.61,131.54,28.11804576]
[1744706015448,0.04858733,131.59,131.54,28.11804576]
[1744706023152,4.70955547,131.58,131.54,28.11804576]
[1744706026556,0.04858733,131.59,131.54,28.11804576]
[1744706026756,4.7581428,131.59,131.54,28.11804576]
[1744706028157,4.70955547,131.57,131.54,28.11804576]
[1744706028854,4.70955547,131.55,131.54,0.05804576]
[1744706030854,4.70955547,131.55,131.5,28.06]
[1744706031154,4.70955547,131.51,131.5,28.06]
[1744706031665,4.70955547,131.51,131.47,34.0541]
[1744706031862,0.05456552,131.5,131.48,0.05776952]
[1744706033167,4.70955547,131.49,131.48,0.05776952]
[1744706035167,7.42427831,131.5,131.48,0.05776952]
[1744706037963,11.60707831,131.5,131.41,90.06]
[1744706038267,7.36971279,131.48,131.41,90.06]
[1744706038768,11.55251279,131.5,131.41,97.42971279]
[1744706039165,0.05525792,131.47,131.44,0.05438834]
[1744706040071,0.05525792,131.47,131.44,28.13438834]
[1744706040972,28.08,131.51,131.44,28.13438834]
[1744706041172,7.36971279,131.52,131.45,1.9975]
[1744706041373,35.44971279,131.54,131.45,13.69631279]
[1744706041967,0.05319127,131.51,131.48,0.05397416]
[1744706043773,7.36971279,131.5,131.48,0.05397416]
[1744706043974,7.42290406,131.51,131.48,0.05397416]
[1744706044875,35.50290406,131.51,131.48,0.05397416]
[1744706047476,7.36971279,131.49,131.48,0.05397416]
[1744706047775,7.36971279,131.49,131.41,30.2534]
[1744706048775,0.04926662,131.46,131.44,0.05092462]
[1744706054167,35.44971279,131.45,131.44,0.05092462]
[1744706054474,35.44971279,131.45,131.38,30.0746]
[1744706055378,0.055262,131.43,131.4,0.05627028]
[1744706056376,7.42497479,131.43,131.4,0.05627028]
[1744706057480,9.59737479,131.43,131.4,0.05627028]
[1744706059384,11.58897479,131.43,131.4,0.05627028]
[1744706063279,4.72259637,131.41,131.4,0.05627028]
[1744706063482,32.80259637,131.41,131.4,0.05627028]
[1744706064381,32.80259637,131.41,131.33,62.0]
[1744706064680,4.72259637,131.37,131.32,32.80259637]
[1744706065077,4.72259637,131.35,131.32,28.08]
[1744706065380,4.72259637,131.35,131.3,6.2293]
[1744706065576,4.78058113,131.35,131.32,0.05119856]
[1744706067183,0.05798476,131.35,131.32,0.05119856]
[1744706068888,7.44273258,131.35,131.32,0.05119856]
[1744706070992,0.05798476,131.35,131.32,0.05119856]
[1744706076795,28.1,131.4,131.32,28.15119856]
[1744706076994,28.1,131.4,131.33,2.1271]
[1744706077796,0.05853195,131.38,131.35,0.05187042]
[1744706081296,0.05853195,131.38,131.35,28.15187042]
[1744706083197,2.1468,131.43,131.35,35.53661824]
[1744706083402,2.1649,131.44,131.37,7.38474782]
[1744706083598,28.1,131.45,131.38,28.1]
[1744706083797,28.1,131.45,131.39,2.1433]
[1744706084398,0.0580998,131.43,131.41,0.05335053]
[1744706084602,0.0495332,131.43,131.41,0.05335053]
[1744706087402,0.0495332,131.43,131.41,28.13335053]
[1744706093315,0.0495332,131.43,131.41,32.8512395]
[1744706094115,0.0495332,131.43,131.41,28.13335053]
[1744706094326,0.0495332,131.43,131.41,32.8512395]
[1744706094911,0.0495332,131.43,131.41,28.13335053]
[1744706095112,4.71788897,131.42,131.41,0.05335053]
[1744706097120,0.0495332,131.43,131.41,0.05335053]
[1744706101416,0.0495332,131.43,131.41,28.13335053]
[1744706105323,7.42506979,131.43,131.41,0.05335053]
[1744706106917,7.42506979,131.43,131.34,6.2072]
[1744706107123,7.37553659,131.41,131.35,28.08]
[1744706108123,0.05389641,131.39,131.37,0.05470204]
[1744706113528,7.429433,131.39,131.37,0.05470204]
[1744706114027,35.509433,131.39,131.32,28.08]
[1744706114227,7.37553659,131.37,131.32,28.08]
[1744706115127,0.048911,131.36,131.33,0.04838422]
[1744706118727,4.72473978,131.39,131.34,4.72473978]
[1744706118928,4.72473978,131.41,131.36,4.72473978]
[1744706119935,0.05012976,131.4,131.37,0.05053377]
[1744706120127,0.05012976,131.4,131.38,32.80473978]
[1744706121128,0.05012976,131.4,131.38,28.08]
[1744706121737,35.45391818,131.46,131.38,28.08]